Cogmind - Beta 16 @@@ ROGUE MODE // 2026.01.16 @ 23:16:18 Player: teh_pwnerer Result: Destroyed by D-53 Grenadier with Mini Grenade Launcher Performance ------------- Evolutions (0) 0 Regions Visited (4) 800 Robots Destroyed (13) 65 Value Destroyed (284) 284 Prototype IDs (0) 0 Alien Tech Used (0) 0 Bonus (0) 0 TOTAL SCORE: 1149 Bonus ------- None Cogmind --------- Core Integrity 0/250 Matter 199/300 Energy 100/100 System Corruption 0% Temperature Cool (0) Movement Core (150) Ox2 Location -9/Mines Parts ------- > --- POWER (1) -------- (None) > --- PROPULSION (2) --- (None) > --- UTILITY (2) ------ Small Storage Unit > --- WEAPON (2) ------- Rocket Launcher > --- INVENTORY (8) ---- Wheel Compact Wheel Experimental Sensor Array Mini Grenade Launcher Mini Grenade Launcher Mining Laser Peak State ------------ > --- POWER ------------ Ion Engine > --- PROPULSION ------- Light Treads Light Treads > --- UTILITY ---------- Small Storage Unit Improved Terrain Scanner > --- WEAPON ----------- EM Pulse Gun Mini Grenade Launcher > --- INVENTORY -------- Fission Core Wheel Compact Wheel Experimental Sensor Array Rocket Launcher Mini Grenade Launcher Mini Grenade Launcher Mining Laser [Rating: 12] Favorites ----------- Power Light Ion Engine Engine Light Ion Engine Propulsion Light Treads Treads Light Treads Utility Small Storage Unit Device Improved Terrain Scanner Storage Small Storage Unit Weapon Mini Grenade Launcher Energy Gun EM Pulse Gun Ballistic Gun Light Assault Rifle Launcher Mini Grenade Launcher Build | -11 -10 -10 -10 -9 ------- Run | Yrd Mat Min Exi Min Slots Evolved . | . . . . . Power . | . . . . . Propulsion . | . . . . . Utility . | . . . . . Weapon . | . . . . . Parts Attached 13 | 7 2 3 1 . Power 2 | 1 . . 1 . Engine 2 | 1 . . 1 . Core . | . . . . . Reactor . | . . . . . Propulsion 2 | 2 . . . . Treads 2 | 2 . . . . Leg . | . . . . . Wheel . | . . . . . Hover . | . . . . . Flight . | . . . . . Utility 2 | 2 . . . . Device 1 | 1 . . . . Storage 1 | 1 . . . . Processor . | . . . . . Hackware . | . . . . . Protection . | . . . . . Artifact . | . . . . . Weapon 7 | 2 2 3 . . Energy Gun 1 | . . 1 . . Energy Cannon . | . . . . . Ballistic Gun 2 | 2 . . . . Ballistic Cannon . | . . . . . Launcher 4 | . 2 2 . . Special Weapon . | . . . . . Impact Weapon . | . . . . . Slashing Weapon . | . . . . . Piercing Weapon . | . . . . . Special Melee Weapon . | . . . . . Unidentified Prototypes . | . . . . . Parts Lost 6 | . . . . 6 Power 1 | . . . . 1 Propulsion 2 | . . . . 2 Utility 1 | . . . . 1 Weapon 2 | . . . . 2 Highest Loss Streak 5 | . . . . 5 To Critical Strikes . | . . . . . Average Backups 6 | 3 4 7 7 6 Power . | . 1 1 . . Propulsion 1 | 1 2 2 2 2 Utility . | . . . 1 1 Weapon 3 | 1 1 3 4 3 Tool/Special . | . . . . . Unused Backups 6 | . . . 2 4 Power 2 | . . . 2 . Propulsion 2 | . . . . 2 Utility 1 | . . . . 1 Weapon 1 | . . . . 1 Tool/Special . | . . . . . Average Slot Usage (%) 98 | . 100 100 99 76 Engine 13 | . 14 14 13 12 Treads 27 | . 28 28 28 22 Device 13 | . 14 14 14 11 Storage 14 | . 14 14 14 14 Energy Gun 9 | . . 13 14 . Ballistic Gun 4 | . 24 . . . Launcher 12 | . 3 14 14 15 Peak Build Rating 12 | 9 11 11 12 12 Average Rating 10 | 6 9 11 10 9 On Entrance 8 | . 9 11 11 11 Avg Prop Armor Cover (%) . | . . . . . Naked Turns . | . . . . . Heaviest Build 15 | 11 11 15 14 12 Greatest Support 40 | 40 40 40 40 40 Greatest Overweight (x) 2 | 1 . . . 2 Average Overweight (x) . | . . . . . Largest Inventory Capacity 8 | 8 8 8 8 8 Average Capacity 7 | 7 8 8 8 8 Most Carried 8 | 6 8 8 8 7 Average Carried 6 | 3 4 7 7 6 Final Capacity 8 | 8 8 8 8 8 Final Carried 8 | 4 6 8 7 6 Class Distribution -------------------- 100% | Mutant Dominant Class ---------------- Mutant | -10/Materials Mutant | -10/Mines Mutant | -10/Exiles Mutant | -9/Mines Resources | -11 -10 -10 -10 -9 ----------- Run | Yrd Mat Min Exi Min Matter Collected 407 | 194 64 124 . 25 Remotely . | . . . . . Salvage Created 238 | 43 73 84 . 38 Parts 17 | 7 4 5 . 1 Haulers Intercepted . | . . . . . Recyclers Shooed . | . . . . . Parts Field Recycled . | . . . . . Retrieved Matter . | . . . . . Parts Self-Destructed . | . . . . . Prevented . | . . . . . Parts Restored . | . . . . . Kills | -11 -10 -10 -10 -9 ------- Run | Yrd Mat Min Exi Min Combat Hostiles Destroyed 8 | . 4 2 . 2 Melee 1 | . 1 . . . Guns 3 | . 3 . . . AOE 4 | . . 2 . 2 Classes Destroyed 5 | 1 3 . . 1 Worker 1 | . . . . 1 Tunneler 3 | 3 . . . . Watcher 1 | . 1 . . . Swarmer 3 | . 3 . . . Grunt 5 | . 1 2 . 2 Best Kill Streak 4 | 2 4 2 . 2 Combat Bots Only 4 | . 4 2 . 2 Max Kills in Single Turn 2 | 1 1 2 . 1 Gunslinging . | . . . . . Exploded 2 | . . 2 . 1 Melee 1 | . 1 . . . Uniques/NPCs Destroyed . | . . . . . Combat | -11 -10 -10 -10 -9 -------- Run | Yrd Mat Min Exi Min Hostile Shots Fired 76 | . 52 5 . 19 Missed 21 | . 18 1 . 2 Hits 55 | . 34 4 . 17 Projectile 55 | . 34 4 . 17 AOE 12 | . . . . 12 Damage Taken 971 | . 282 59 . 630 Core 262 | . 49 16 . 197 Absorbed by Shields . | . . . . . Core Remaining (%) 100 | 100 . . . . Volleys Fired 33 | 7 13 6 . 7 Largest 2 | 2 2 2 . 2 Hottest 73 | 40 60 73 . 70 Shots Fired 60 | 14 26 9 . 11 Gun 42 | 14 24 3 . 1 Cannon . | . . . . . Launcher 18 | . 2 6 . 10 Special . | . . . . . Kinetic 38 | 14 24 . . . Thermal . | . . . . . Explosive 18 | . 2 6 . 10 Electromagnetic 4 | . . 3 . 1 Robot Hit Streak 19 | 12 19 1 . 5 Robot Miss Streak 2 | 1 2 2 . 1 Penetration Max . | . . . . . Secondary Targets . | . . . . . Shots Hit Robots 37 | 13 15 1 . 8 Core Hits 29 | 6 9 4 . 10 Critical Kills . | . . . . . Critical Parts Destroyed . | . . . . . Critical Strikes . | . . . . . Melee Attacks . | . . . . . Impact . | . . . . . Slashing . | . . . . . Piercing . | . . . . . Sneak Attacks . | . . . . . Combat Hostiles . | . . . . . Follow-up Attacks . | . . . . . Damage Inflicted 703 | 105 160 85 . 353 Guns 246 | 105 116 13 . 12 Cannons . | . . . . . Explosions 447 | . 34 72 . 341 Melee . | . . . . . Ramming 10 | . 10 . . . Kinetic 221 | 105 116 . . . Thermal . | . . . . . Explosive 447 | . 34 72 . 341 Electromagnetic 25 | . . 13 . 12 Impact . | . . . . . Slashing . | . . . . . Piercing . | . . . . . Highest Corruption . | . . . . . Average Corruption . | . . . . . Corruption Purged . | . . . . . Corruption Blocked . | . . . . . Overload Shots . | . . . . . Overflow Damage 2 | . . . . 2 Projectiles . | . . . . . Explosions 2 | . . . . 2 Melee . | . . . . . Knockbacks . | . . . . . Impact . | . . . . . Kinetic . | . . . . . Secondary . | . . . . . Self-Inflicted Damage 77 | . . 2 . 75 Shots 4 | . . 1 . 3 Rammed 6 | . 6 . . . Targets Rammed 7 | . 7 . . . Kicked . | . . . . . Crushed 1 | . 1 . . . Highest Temperature 48 | . 12 48 . 33 Average Temperature 16 | . 9 21 . 14 Received Heat Transfer 102 | . 30 30 . 42 Siege Activations . | . . . . . Martial Activations . | . . . . . Shielding Activations . | . . . . . Robots Disrupted . | . . . . . Combat Hostiles . | . . . . . Robots Corrupted . | . . . . . Combat Hostiles . | . . . . . Parts Fried . | . . . . . Impact Corruptions . | . . . . . Robots Melted . | . . . . . Combat Hostiles . | . . . . . Parts Melted . | . . . . . Heat Transferred . | . . . . . Parts Sabotaged . | . . . . . Parts Stolen . | . . . . . Parts Stripped . | . . . . . Power Chain Reactions . | . . . . . Alert | -11 -10 -10 -10 -9 ------- Run | Yrd Mat Min Exi Min Maximum Alert Level . | . . . . . Low Security (%) 100 | 100 100 100 . 100 Level 1 . | . . . . . Level 2 . | . . . . . Level 3 . | . . . . . Level 4 . | . . . . . Level 5 . | . . . . . High Security . | . . . . . Max Security . | . . . . . Peak Influence 80 | 10 60 80 . 59 Initial 5 | . 3 5 . . Average 13 | 1 21 6 . 34 Influence Increases 303 | 15 114 90 . 84 Destroy 0b10 Robot/C 160 | . 80 40 . 40 Destroy 0b10 Robot/NC 25 | 15 5 . . 5 Destroy Leader 32 | . 12 10 . 10 Disable Machine 30 | . 15 15 . . Destroy Structure 56 | . 2 25 . 29 Influence Decreases 303 | 10 105 44 60 84 Entered New Map 71 | . 2 9 60 . Time Decay 188 | 10 103 35 . 40 Lost Part 44 | . . . . 44 Squads Dispatched 1 | . 1 . . . Investigation . | . . . . . Extermination . | . . . . . Reinforcement 1 | . 1 . . . Assault . | . . . . . Garrison . | . . . . . Intercept . | . . . . . Searches Triggered . | . . . . . Construction Impeded . | . . . . . Haulers Reinforced . | . . . . . Active Scanning Responses . | . . . . . Cargo Convoy Interrupts . | . . . . . Stealth | -11 -10 -10 -10 -9 --------- Run | Yrd Mat Min Exi Min Distress Signals 1 | . 1 . . . Communications Jammed . | . . . . . Distress Signals . | . . . . . Times Spotted 12 | . 6 2 . 4 Peak Tracking Total 4 | . 4 2 . 2 Tactical Retreats . | . . . . . Traps | -11 -10 -10 -10 -9 ------- Run | Yrd Mat Min Exi Min Traps Triggered . | . . . . . Indirectly . | . . . . . Trap Hack Attempts . | . . . . . Triggered . | . . . . . Disarmed . | . . . . . Reprogrammed . | . . . . . Reused . | . . . . . Traps Extracted . | . . . . . Installed . | . . . . . Triggered . | . . . . . Machines | -11 -10 -10 -10 -9 ---------- Run | Yrd Mat Min Exi Min Machines Disabled 2 | . 1 1 . . Max in Single Turn 1 | . 1 1 . . Machines Repaired . | . . . . . Machines Dismantled . | . . . . . Machines Sabotaged . | . . . . . Overloaded Fab Kills . | . . . . . Hacking | -11 -10 -10 -10 -9 --------- Run | Yrd Mat Min Exi Min Machines Accessed 1 | . . . 1 . Terminals . | . . . . . Fabricators . | . . . . . Repair Stations . | . . . . . Recycling Units . | . . . . . Scanalyzers . | . . . . . Garrison Access . | . . . . . Total Hacks 23 | . . . 23 . Successful 23 | . . . 23 . Failed . | . . . . . Catastrophic . | . . . . . Database Lockouts . | . . . . . Manual . | . . . . . Terminals . | . . . . . Fabricators . | . . . . . Repair Stations . | . . . . . Recycling Units . | . . . . . Scanalyzers . | . . . . . Garrison Access . | . . . . . Terminal Hacks 23 | . . . 23 . Record 23 | . . . 23 . Fabricator Hacks . | . . . . . Repair Station Hacks . | . . . . . Recycling Unit Hacks . | . . . . . Scanalyzer . | . . . . . Garrison Access Hacks . | . . . . . Unauthorized Hacks . | . . . . . Terminals . | . . . . . Fabricators . | . . . . . Repair Stations . | . . . . . Recycling Units . | . . . . . Scanalyzers . | . . . . . Garrison Access . | . . . . . Data Cores Recovered . | . . . . . Used . | . . . . . Hacking Detections . | . . . . . Full Trace Events . | . . . . . Feedback Events . | . . . . . Feedback Blocked . | . . . . . Robot Schematics Acquired . | . . . . . Robots Built . | . . . . . Authchips . | . . . . . Time . | . . . . . Total Robot Build Rating . | . . . . . Part Schematics Acquired . | . . . . . Parts Built . | . . . . . Authchips . | . . . . . Time . | . . . . . Total Part Build Rating . | . . . . . Part Studies Acquired . | . . . . . Parts Repaired . | . . . . . Time . | . . . . . Parts Recycled . | . . . . . Recycled Matter . | . . . . . Retrieved Matter . | . . . . . Retrieved Components . | . . . . . Parts Scanalyzed . | . . . . . Part Schematics Acquired . | . . . . . Parts Damaged . | . . . . . Bothacking | -11 -10 -10 -10 -9 ------------ Run | Yrd Mat Min Exi Min Used RIF Installer . | . . . . . Robots Hacked . | . . . . . Non-combat . | . . . . . Combat . | . . . . . Robot Hacks Applied . | . . . . . Relay Couplers Released . | . . . . . Fabnet Peak Effective % . | . . . . . Robots Rewired . | . . . . . Allies Hacked . | . . . . . Hacks Repelled . | . . . . . Allies | -11 -10 -10 -10 -9 -------- Run | Yrd Mat Min Exi Min Total Allies . | . . . . . Largest Group . | . . . . . Highest-Rated Group . | . . . . . Highest-Rated Ally . | . . . . . Total Orders . | . . . . . Ally Attacks . | . . . . . Total Damage . | . . . . . Kills . | . . . . . Allies Corrupted . | . . . . . Allies Melted . | . . . . . Intel | -11 -10 -10 -10 -9 ------- Run | Yrd Mat Min Exi Min Active Infowar (turns) 1408 | 42 286 395 606 79 Terrain 1408 | 42 286 395 606 79 Robot Analysis Total . | . . . . . Derelict Logs Recovered . | . . . . . Drone Launches . | . . . . . Drone Recoveries . | . . . . . Exploration | -11 -10 -10 -10 -9 ------------- Run | Yrd Mat Min Exi Min Turns Passed 1509 | 132 286 395 606 90 Spaces Moved 862 | 72 146 229 373 42 Core 21 | 17 . . . 4 Treads 841 | 55 146 229 373 38 Legs . | . . . . . Wheels . | . . . . . Hover . | . . . . . Flight . | . . . . . Fastest Speed 50 | 50 160 160 160 150 Average Speed 157 | 135 160 160 160 159 Slowest Speed 160 | 160 160 160 160 160 Overloaded Moves . | . . . . . Propulsion Burnouts . | . . . . . Robots Hopped . | . . . . . Potential Cave-ins . | . . . . . Cave-ins Triggered . | . . . . . Exploration Rate (%) 36 | 6 34 49 74 21 Regions Visited 4 Branch Regions 3 Pre-discovered Areas 1 | . . . 1 . Known Exits Taken . | . . . . . Unknown Exits Taken 4 | 1 1 1 1 . Scrap Searched 1 | . . 1 . . Spaces Dug 9 | . . 9 . . Terrain Destroyed 97 | . 2 63 . 32 Melee . | . . . . . Projectile . | . . . . . AOE 97 | . 2 63 . 32 Terrain Rammed . | . . . . . Walls Destroyed . | . . . . . Machines Disabled . | . . . . . Actions | -11 -10 -10 -10 -9 --------- Run | Yrd Mat Min Exi Min Total 955 | 95 174 248 384 54 Wait 16 | . 1 7 4 4 Move 858 | 71 145 228 372 42 Hop . | . . . . . Pick Up 20 | 10 4 3 3 . Fast Attach 1 | 1 . . . . Attach 10 | 6 1 1 1 1 Detach . | . . . . . Swap 3 | . 1 2 . . Drop 7 | . 2 1 4 . Fire 33 | 7 13 6 . 7 Melee . | . . . . . Ram . | . . . . . Kick . | . . . . . Crush 7 | . 7 . . . Escape Stasis . | . . . . . Rewire . | . . . . . Trap . | . . . . . Miscellaneous . | . . . . . Route ------- -11/Scrapyard -10/Materials (discovered 2 exits: [*Min] / [*Sub]) -10/Mines (discovered 2 exits: [*Mat] / *Exi) -10/Exiles -9/Mines (discovered 1 exit: [*Mat]) History --------- Turn | Location | Event 3 | -11/Scrapyard | Discovered new exit (range 16) 133 | -11/Scrapyard | Entered Materials 300 | -10/Materials | Discovered new exit (range 10) 305 | -10/Materials | Build established: Mutant 321 | -10/Materials | Discovered new exit (range 10) 419 | -10/Materials | Entered Mines 426 | -10/Mines | Received a Rocket Launcher from a helpful Derelict 537 | -10/Mines | Found a damaged Exp. Sensor Array with a note attached 540 | -10/Mines | Found Prototype Device 642 | -10/Mines | Discovered new exit (range 14) 768 | -10/Mines | Discovered new exit (range 7) 807 | -10/Mines | Deemed a non-threat by the Exiles lab entrance 814 | -10/Mines | Entered Exiles 867 | -10/Exiles | Met 8R-AWN 901 | -10/Exiles | Met EX-HEX 1013 | -10/Exiles | Met EX-DEC 1058 | -10/Exiles | Learned location of Zion (-7) 1126 | -10/Exiles | Visited The Gauntlet 1399 | -10/Exiles | Discovered new exit (range 14) 1420 | -10/Exiles | Entered Mines 1471 | -9/Mines | Discovered new exit (range 8) 1488 | -9/Mines | Assembled infested the area 1496 | -9/Mines | Core integrity fell below 50% 1502 | -9/Mines | Core integrity fell below 20% 1510 | -9/Mines | Destroyed by D-53 Grenadier with Mini Grenade Launcher Last Messages --------------- Destroyed EM Pulse Gun. G-34 Mercenary destroyed. G-47 Trooper destroyed. Acquired 25 matter. The unstable cave ceiling collapses. K-01 Serf collects debris. EXIT=FOUND K-01 Serf collects debris. ALERT: Infestation in the mines, dispatching Demolisher response squad. K-01 Serf collects debris. C-45 Heavy ARC bursts open, deploying its payload. D-53 Grenadier unfolds itself. Lgt. Treads destroyed. Imp. Terrain Scanner destroyed. Lgt. Treads destroyed. Ion Engine destroyed. Mni. Grenade Launcher destroyed. The unstable cave ceiling collapses. Map ----- +----------------------------------------------------+ | ?????????????????????????????????????????????????? | | ?????????????????????????????????????????????????? | | ?????????????????????????????????????????????????? | | ?????????????????????????????????????????????????? | | ?????????????????????????????????????????????????? | | ?????????????????????????????????????????????????? | | ?????????????????????????????????????????????????? | | ?????????????????????????????????????????????????? | | ?????????????????????????????????????????????????? | | ?????????????????????????????????????????????????? | | ?????????????????????????????????????????????????? | | ?????????????????????????????????????????????????? | | ???? ????????????????????????????????????????????? | | ????????????????#????????????????????????????????? | | ?????????????????????????????????????????????????? | | ?????????????????????????#???????????????????????? | | ?????????????????????????????????????????????????? | | ?????????????????????????????????????????????????? | | ???????????#? ???????????????????????????????????? | | ????????????# #??????????????#???????###?????????? | | ????????????? #?????????????????????# ###???????? | | ????????#???? #????? ??????##??????# ##??????? | | ????????????? #???????##?## ##????# ##?????? | | ??????###???? #???#? ?# ## ##### ??????? | | ?????## ##?? ###### ## # # ??????? | | ????## ### @ #?????????? | | ????# #??###### #??????????? | | ????# # #######?# ###?#????????? | | ?#??## ##### ###????????????? | | ?????# #??????????????? | | ?????## # #### ##### d ##??????????????? | | ??????# ##??# #?### #???????????????? | | ??????# #### #### ##d # ##???????????????? | | ??????# ##????????????????? | | ?#????#### ### # #?????#???????????? | | ?????????####### ###### ##????????????????? | | ???????#???????# #??## ##???????????????? | | ?#?????????????# #??# ###?????????????? | | ???????????????# ##?????????????? | | ???????????????####### = #?????????????? | | ?????????????????????### % #????????????? | | ????????????????????????# ##??????????? | | ????#???????????????????? ?????????? | | ??#????????????????????? ???????? | | ???????????????????????< ##?# ####???????? | | ????????????????#????? ##???#######??????????? | | ????????????????????? ####????????#????????????? | | ????????????????????? #?????????????????????????? | | ????????????????????# ?#????????????????????????? | | ????????????????????# ???????????????????????????? | +----------------------------------------------------+ Best States ------------- Heat Dissipation 25 Energy Generation 10 Energy Capacity 250 Matter Stores 275 Matter Capacity 300 Sight Range 16 Terrain Scan Range 16 Terrain Scan Density 10 Evasion (%) 50 Recoil Reduction 2 Item Schematics ----------------- None Robot Schematics ------------------ None Fabricated ------------ Nothing Repaired ---------- Nothing Studied --------- None Alien Tech Used ----------------- None Achievements -------------- Librarian Tourist Challenges ------------ None Game ------ Seed OvertunedCoolantMallet Manual? 0 Play Time 00:23:29 Cumulative 7.3 hours Start 2026.01.16 @ 22:46:14 End 2026.01.16 @ 23:16:18 Sessions 1 Manual Loads 0 Difficulty Rogue Special Mode None Game No. 12 Rogue 12 Adventurer 0 Explorer 0 Win Type - Total 0 Types 0/0/0/0/0/0/0/0/0/0 Lore% 3 Gallery% 7 Achievement% 7 Wizard Run 0 Options --------- Layout 1 ASCII 0 Keyboard 0 Movement Arrows Keybinds 0 Fullscreen 1 Font 24/Smallcaps Map View 50x35 Zoom Use 0% Tactical HUD 0 Map Filters NONE Filters NONE Steam 1 RUN: c3828d4d-3985-4d5f-b5b3-155f30225fc0